bitfinex/quotes_BTCUSD_20241229
["timestamp","ask_amount","ask_price","bid_price","bid_amount"]
[1735501508948,0.09534663,93654.0,93652.0,0.00318268]
[1735501509269,4.670182,93653.0,93652.0,0.00318268]
[1735501510215,4.670182,93653.0,93652.0,0.00018268]
[1735501510659,4.670182,93653.0,93652.0,0.00418268]
[1735501510868,4.670182,93653.0,93652.0,0.00018268]
[1735501511065,4.86110256,93653.0,93652.0,0.00018268]
[1735501511403,4.86210256,93653.0,93652.0,0.00618268]
[1735501511830,4.59492056,93653.0,93652.0,0.00618268]
[1735501512027,4.6306507,93653.0,93652.0,0.00718268]
[1735501512322,4.34643849,93653.0,93652.0,0.00718268]
[1735501512527,4.6126507,93653.0,93652.0,0.00718268]
[1735501513093,4.3896507,93653.0,93652.0,0.00718268]
[1735501513483,4.151,93653.0,93652.0,0.00718268]
[1735501515679,3.85,93653.0,93652.0,0.00718268]
[1735501519971,3.85,93653.0,93626.0,0.07956808]
[1735501520177,4.38697,93652.0,93627.0,0.00801578]
[1735501520495,4.38697,93651.0,93627.0,0.00801578]
[1735501520734,4.38697,93650.0,93627.0,0.00801578]
[1735501520938,4.38697,93649.0,93627.0,0.00801578]
[1735501521111,4.38697,93648.0,93627.0,0.00801578]
[1735501521457,4.38697,93647.0,93627.0,0.01501578]
[1735501521595,4.38697,93646.0,93627.0,0.01501578]
[1735501521794,4.38697,93645.0,93627.0,0.00801578]
[1735501522060,0.09554797,93643.0,93627.0,0.00801578]
[1735501522260,0.09554797,93643.0,93628.0,0.00877364]
[1735501522538,0.09554797,93643.0,93627.0,0.002]
[1735501522699,0.09554797,93643.0,93627.0,0.008]
[1735501523036,0.09554797,93640.0,93627.0,0.002]
[1735501523669,0.09554797,93640.0,93628.0,0.00817206]
[1735501524217,0.09554797,93639.0,93628.0,0.00817206]
[1735501525436,0.001,93639.0,93628.0,0.00817206]
[1735501525578,0.001,93639.0,93628.0,0.01017206]
[1735501525770,0.001,93639.0,93628.0,0.002]
[1735501528175,0.001,93639.0,93629.0,0.083]
[1735501529177,0.09554797,93641.0,93629.0,0.083]
[1735501529618,0.001,93639.0,93629.0,0.086]
[1735501530189,0.09554797,93634.0,93629.0,0.086]
[1735501530582,0.09554797,93634.0,93629.0,0.088]
[1735501530990,0.09554797,93634.0,93629.0,0.086]
[1735501531312,0.09554797,93630.0,93629.0,0.086]
[1735501531653,0.09554797,93630.0,93629.0,0.089]
[1735501531916,0.09554797,93630.0,93629.0,0.09792379]
[1735501532130,0.01744797,93630.0,93629.0,0.34731011]
[1735501532335,0.06522195,93633.0,93632.0,0.1]
[1735501532508,0.06522195,93633.0,93632.0,0.32678632]
[1735501533112,0.06522195,93633.0,93632.0,0.32578632]
[1735501533341,0.06522195,93633.0,93632.0,0.36988112]
[1735501533548,0.19104917,93636.0,93635.0,0.099]
[1735501533741,0.06544917,93672.0,93641.0,0.099]
[1735501533916,0.06544917,93672.0,93642.0,0.10398632]
[1735501534633,0.06544917,93672.0,93643.0,0.0628]
[1735501534791,0.06544917,93672.0,93645.0,0.099]
[1735501535156,0.06544917,93672.0,93646.0,0.10398632]
[1735501535357,0.0011708,93681.0,93646.0,0.10398632]
[1735501535656,0.0011708,93681.0,93646.0,0.20298632]
[1735501535901,0.0001708,93681.0,93648.0,0.099]
[1735501536081,0.0011706,93653.0,93652.0,0.099]
[1735501536300,0.0011706,93653.0,93652.0,0.23047495]
[1735501536448,0.0001706,93653.0,93652.0,0.23047495]
[1735501536856,0.0011706,93653.0,93652.0,0.23047495]
[1735501537452,0.0011706,93653.0,93652.0,0.29337495]
[1735501537658,0.0001708,93681.0,93664.0,0.099]
[1735501537878,0.0001708,93681.0,93664.0,0.21288632]
[1735501538854,0.0001708,93681.0,93664.0,0.27473888]
[1735501539264,0.0011706,93665.0,93664.0,0.28373888]
[1735501539465,0.0001706,93665.0,93664.0,0.27473888]
[1735501539891,0.0011706,93665.0,93664.0,0.38373888]
[1735501540539,0.0021706,93665.0,93664.0,0.39073888]
[1735501540717,0.0001708,93681.0,93664.0,0.39073888]
[1735501540718,0.0001708,93681.0,93676.0,0.099]
[1735501540923,0.0001708,93681.0,93677.0,0.11388632]
[1735501541205,0.0001708,93681.0,93680.0,0.099]
[1735501541410,0.0001708,93681.0,93680.0,0.20298632]
[1735501541806,0.0001708,93681.0,93680.0,0.30298632]
[1735501542120,0.0001708,93681.0,93680.0,0.36248632]
[1735501542450,0.0021708,93681.0,93680.0,0.40872495]
[1735501543316,0.0011708,93681.0,93680.0,0.39972495]
[1735501543733,0.0001708,93681.0,93680.0,0.39972495]
[1735501544085,0.0001708,93681.0,93680.0,0.16948632]
[1735501544086,0.0011708,93681.0,93680.0,0.16948632]
[1735501544297,0.0011708,93681.0,93680.0,0.006]
[1735501544494,0.0011708,93681.0,93664.0,0.00015256]
[1735501544696,0.0011708,93681.0,93680.0,0.009]
[1735501544905,0.2056828,93681.0,93680.0,0.009]
[1735501545468,0.0823708,93681.0,93680.0,0.009]
[1735501545658,0.0803708,93681.0,93664.0,0.00015256]
[1735501545985,0.0813708,93681.0,93680.0,0.009]
[1735501546194,0.0011708,93681.0,93680.0,0.009]
[1735501546958,0.0001708,93681.0,93664.0,0.00015256]
[1735501547165,0.0001708,93681.0,93665.0,0.10398632]
[1735501547376,0.0001708,93681.0,93666.0,0.01041389]
[1735501547577,0.0001708,93681.0,93664.0,0.00315256]
[1735501547927,0.0001708,93681.0,93664.0,0.00015256]
[1735501548128,0.0011708,93681.0,93665.0,0.10398632]
[1735501548328,0.0011708,93681.0,93665.0,0.10498632]
[1735501548618,0.0001708,93681.0,93665.0,0.10498632]
[1735501548811,0.0001708,93681.0,93666.0,0.01646389]
[1735501549021,0.0011708,93681.0,93667.0,0.10398632]
[1735501549227,0.0001708,93681.0,93668.0,0.00106735]
[1735501549403,0.0001708,93681.0,93670.0,0.099]
[1735501549609,0.0011708,93681.0,93671.0,0.20405359]
[1735501549945,0.0001708,93681.0,93673.0,0.099]
[1735501550151,0.0011708,93681.0,93674.0,0.10505355]
[1735501550431,0.0011708,93681.0,93677.0,0.099]
[1735501550630,0.0011708,93681.0,93678.0,0.1050535]
[1735501550838,0.0011708,93681.0,93680.0,0.099]
[1735501551038,0.0011708,93681.0,93680.0,0.2244588]
[1735501551258,0.0011708,93681.0,93680.0,0.32339167]
[1735501551467,0.0001708,93681.0,93680.0,0.32339167]
[1735501551892,0.0011708,93681.0,93680.0,0.38289167]
[1735501552322,0.0021708,93681.0,93680.0,0.38889167]
[1735501552743,0.0011708,93681.0,93680.0,0.38889167]
[1735501552956,0.0021708,93681.0,93680.0,0.39789167]
[1735501553159,0.0001708,93682.0,93680.0,0.39789167]
[1735501553160,0.0001708,93682.0,93680.0,0.33839167]
[1735501553368,0.0001708,93682.0,93681.0,0.37112262]
[1735501554533,0.0001708,93701.0,93700.0,0.199]
[1735501554729,0.0001708,93701.0,93700.0,0.30298632]
[1735501555743,0.0011708,93701.0,93700.0,0.30913888]
[1735501556353,0.0011708,93701.0,93700.0,0.31813888]
[1735501556677,0.0021708,93701.0,93700.0,0.34995277]
[1735501557045,0.00207744,93701.0,93700.0,0.34995277]
[1735501560342,0.00107744,93701.0,93700.0,0.34395277]
[1735501560558,0.00107744,93701.0,93700.0,0.00915256]
[1735501560771,7.744e-05,93701.0,93700.0,0.00515256]
[1735501561146,0.00107744,93701.0,93700.0,0.00915256]
[1735501561353,0.04767744,93701.0,93700.0,0.00015256]
[1735501561561,0.04767744,93701.0,93700.0,0.00715256]
[1735501561562,0.04867744,93701.0,93700.0,0.00715256]
[1735501561759,0.04967744,93701.0,93700.0,0.01615256]
[1735501561965,0.04867744,93701.0,93700.0,0.00715256]
[1735501562325,0.04767744,93701.0,93700.0,0.00015256]
[1735501562534,0.04767744,93701.0,93700.0,0.01115256]
[1735501562740,0.04767744,93701.0,93700.0,0.00215256]
[1735501563681,0.04767744,93701.0,93700.0,0.00015256]
[1735501564098,0.04867744,93701.0,93700.0,0.00215256]
[1735501564498,0.04767744,93701.0,93700.0,0.00015256]
[1735501564701,0.04767744,93701.0,93700.0,0.00315256]
[1735501568485,0.04867744,93701.0,93700.0,0.00315256]
[1735501568708,0.13037744,93701.0,93700.0,0.00315256]
[1735501569183,0.13037744,93701.0,93700.0,0.00015256]
[1735501570163,1.31867444,93701.0,93700.0,0.00015256]
[1735501570388,2.02649912,93701.0,93700.0,0.00015256]
[1735501570514,2.73257812,93701.0,93700.0,0.00015256]
[1735501570726,2.47971612,93701.0,93700.0,0.00015256]
[1735501570947,2.17542812,93701.0,93700.0,0.00115256]
[1735501571264,1.55935012,93701.0,93700.0,0.00115256]
[1735501571464,1.56035012,93701.0,93700.0,0.00015256]
[1735501572209,1.36756112,93701.0,93700.0,0.00015256]
[1735501572427,1.36856112,93701.0,93700.0,0.00015256]
[1735501573054,1.36856112,93701.0,93700.0,0.00023786]
[1735501574075,1.35181844,93701.0,93700.0,0.00023786]
[1735501575622,0.69823944,93701.0,93700.0,0.00023786]
[1735501576626,0.68752644,93701.0,93700.0,0.00023786]
[1735501576824,0.001,93681.0,93665.0,8.53e-05]
[1735501577019,0.001,93674.0,93667.0,5.07e-05]
[1735501577377,0.001,93669.0,93667.0,5.07e-05]
[1735501577588,0.0801,93668.0,93667.0,5.07e-05]
[1735501577796,2.043655,93668.0,93667.0,5.07e-05]
[1735501577969,2.261232,93668.0,93667.0,5.07e-05]
[1735501578174,2.123165,93668.0,93667.0,5.07e-05]
[1735501578598,2.123165,93668.0,93667.0,0.0020507]
[1735501578776,2.13991301,93668.0,93667.0,0.0020507]
[1735501578991,2.13991301,93668.0,93667.0,0.0090507]
[1735501579193,0.1306,93666.0,93665.0,8.53e-05]
[1735501579420,0.001,93641.0,93629.0,8.53e-05]
[1735501580014,0.01675127,93639.0,93629.0,8.53e-05]
[1735501580399,0.01675127,93639.0,93630.0,0.00951412]
[1735501580623,0.01675127,93639.0,93629.0,8.53e-05]
[1735501581348,0.0178868,93639.0,93629.0,0.0070853]
[1735501582251,0.0178868,93639.0,93629.0,0.0090853]
[1735501583642,0.00113553,93639.0,93630.0,0.10398632]
[1735501584243,0.00113553,93639.0,93635.0,0.099]
[1735501584615,0.0495,93671.0,93640.0,0.0775]
[1735501584775,0.04964691,93671.0,93641.0,0.10398632]
[1735501584958,0.04964691,93671.0,93641.0,0.10298632]
[1735501586985,0.01674853,93664.0,93641.0,0.10298632]
[1735501587095,0.01674853,93664.0,93641.0,0.10598632]
[1735501587299,0.01674853,93664.0,93642.0,0.03146935]
[1735501587498,0.01674853,93664.0,93643.0,0.10398632]
[1735501588329,0.01774853,93664.0,93643.0,0.10398632]
[1735501588534,0.01674853,93664.0,93643.0,0.10398632]
[1735501588962,0.01674853,93664.0,93643.0,0.11298632]
[1735501589170,0.01674853,93664.0,93644.0,0.03219557]
[1735501589362,0.01674853,93664.0,93645.0,0.10398632]
[1735501590608,0.01674853,93664.0,93649.0,0.1]
[1735501590808,0.01674853,93664.0,93650.0,0.10398632]
[1735501591014,0.01774853,93664.0,93650.0,0.10398632]
[1735501591232,0.01774853,93664.0,93651.0,0.03461819]
[1735501591465,0.01774853,93664.0,93652.0,0.10398632]
[1735501592234,0.01674853,93664.0,93652.0,0.10398632]
[1735501592736,0.01774853,93664.0,93652.0,0.10398632]
[1735501593498,0.01774853,93664.0,93654.0,0.1]
[1735501593713,0.01774853,93664.0,93656.0,0.1]
[1735501593910,0.01774853,93664.0,93657.0,0.10398632]
[1735501594191,0.001,93664.0,93661.0,0.1]
[1735501594331,0.001,93664.0,93663.0,0.1]
[1735501594519,0.001,93664.0,93663.0,0.20398632]
[1735501594716,0.001,93664.0,93663.0,0.23219495]
[1735501594948,0.00014691,93671.0,93668.0,0.1]
[1735501595144,0.00014691,93671.0,93669.0,0.20398632]
[1735501595348,0.00014691,93671.0,93670.0,0.099]
[1735501595550,0.00014691,93671.0,93670.0,0.20298632]
[1735501595752,0.00014691,93671.0,93670.0,0.23610582]
[1735501596129,0.00014691,93671.0,93670.0,0.41420582]
[1735501596959,0.00114691,93671.0,93670.0,0.42320582]
[1735501597821,0.00114691,93671.0,93670.0,0.32420582]
[1735501598027,0.00114691,93671.0,93670.0,0.42320582]
[1735501598372,0.00014691,93671.0,93670.0,0.41420582]
[1735501598543,0.00014691,93671.0,93670.0,0.42320582]
[1735501598754,0.00014691,93671.0,93670.0,0.32320582]
[1735501598896,0.00014691,93671.0,93670.0,0.41420582]
[1735501599139,0.00014691,93671.0,93670.0,0.24610582]
[1735501599338,0.00114691,93671.0,93670.0,0.25410582]
[1735501599542,0.00114691,93671.0,93670.0,0.35310582]
[1735501600294,0.00114691,93671.0,93670.0,0.25310582]
[1735501600639,0.00114691,93671.0,93670.0,0.35310582]
[1735501602078,0.00114691,93671.0,93670.0,0.25310582]
[1735501602488,0.00114691,93671.0,93670.0,0.35310582]
[1735501604041,0.00114691,93671.0,93670.0,0.43400582]
[1735501605428,0.00114691,93671.0,93670.0,0.12098632]
[1735501605649,0.00114691,93671.0,93670.0,0.017]
[1735501606264,0.00014691,93671.0,93670.0,0.009]
[1735501606502,0.00014691,93671.0,93657.0,0.0949706]
[1735501606709,0.00014691,93671.0,93670.0,0.004]
[1735501607083,0.016892,93671.0,93670.0,0.009]
[1735501607611,0.016892,93671.0,93658.0,0.10398632]
[1735501607782,0.016892,93671.0,93659.0,0.02029863]
[1735501608000,0.016892,93671.0,93660.0,0.10398632]
[1735501608677,0.016892,93671.0,93670.0,0.002]
[1735501609223,0.0170626,93671.0,93660.0,0.10398632]
[1735501609360,0.0170626,93671.0,93660.0,0.10598632]
[1735501609564,0.0170626,93671.0,93661.0,0.0126285]
[1735501610293,0.0170626,93671.0,93670.0,0.01]
[1735501610490,0.0170626,93671.0,93670.0,0.002]
[1735501611730,0.0170626,93671.0,93661.0,0.0206285]
[1735501612229,0.0170626,93671.0,93661.0,0.0226285]
[1735501612544,0.0170626,93671.0,93662.0,0.01469135]
[1735501613093,0.0170626,93671.0,93670.0,0.008]
[1735501613295,0.0170626,93671.0,93662.0,0.01469135]
[1735501614189,0.00031751,93671.0,93662.0,0.02469135]
[1735501615037,0.1257,93670.0,93662.0,0.01]
[1735501615872,0.1257,93670.0,93660.0,0.10398632]
[1735501616265,0.1257,93670.0,93662.0,0.01]
[1735501616648,0.1257,93670.0,93662.0,0.008]
[1735501617043,0.11557945,93670.0,93660.0,0.10398632]
[1735501617245,0.11557945,93670.0,93661.0,0.01039863]
[1735501617486,0.11557945,93670.0,93662.0,0.006]
[1735501618101,0.11557945,93670.0,93660.0,0.002]
[1735501618641,0.001,93653.0,93641.0,8.53e-05]
[1735501618796,0.001,93650.0,93641.0,8.53e-05]
[1735501618958,1.607033,93649.0,93641.0,8.53e-05]
[1735501619374,0.001,93645.0,93641.0,8.53e-05]
[1735501620181,0.0782,93644.0,93641.0,8.53e-05]
[1735501620761,0.001,93642.0,93641.0,8.53e-05]
[1735501620968,2.523769,93642.0,93641.0,0.0050853]
[1735501621117,1.670361,93642.0,93641.0,8.53e-05]
[1735501621486,1.341221,93642.0,93641.0,0.0040853]
[1735501621742,0.125436,93642.0,93641.0,0.0040853]
[1735501622890,0.125436,93642.0,93641.0,8.53e-05]
[1735501623255,0.125436,93642.0,93641.0,0.0050853]
[1735501623453,0.124436,93642.0,93641.0,0.0050853]
[1735501623678,0.0475,93643.0,93641.0,0.0050853]
[1735501624606,0.0475,93643.0,93641.0,8.53e-05]
[1735501624768,0.0475,93643.0,93641.0,0.0050853]
[1735501628819,0.001,93642.0,93641.0,0.0050853]
[1735501629019,0.22514,93642.0,93641.0,0.0050853]
[1735501629798,0.001,93630.0,93606.0,8.53e-05]
[1735501629919,2.860186,93630.0,93629.0,0.00022083]
[1735501630130,2.87198,93630.0,93629.0,0.00022083]
[1735501630362,2.411985,93630.0,93629.0,0.00022083]
[1735501630634,1.02517518,93630.0,93629.0,0.00022083]
[1735501630846,0.42578818,93630.0,93629.0,0.00022083]
[1735501631082,0.36681918,93630.0,93629.0,0.00722083]
[1735501631297,0.15015418,93630.0,93629.0,0.00722083]
[1735501631717,0.01675418,93630.0,93629.0,0.00722083]
[1735501632406,0.01675418,93630.0,93629.0,0.00822083]
[1735501632787,0.0492,93642.0,93629.0,0.00822083]
[1735501632970,0.0492,93642.0,93630.0,0.00106776]
[1735501633378,0.0492,93642.0,93629.0,0.00122083]
[1735501633786,0.0492,93642.0,93629.0,0.00022083]
[1735501634265,0.0502,93642.0,93629.0,0.00022083]
[1735501634647,0.001,93642.0,93629.0,0.00522083]
[1735501634863,0.001,93642.0,93629.0,0.00022083]
[1735501635984,0.1261,93653.0,93631.0,0.099]
[1735501635985,0.0452,93653.0,93631.0,0.099]
[1735501636149,0.0809,93662.0,93633.0,0.099]
[1735501636354,0.0809,93662.0,93634.0,0.10505403]
[1735501636996,0.0809,93662.0,93635.0,0.099]
[1735501637196,0.0452,93665.0,93636.0,0.205054]
[1735501637503,0.0167493,93667.0,93644.0,0.099]
[1735501637709,0.0167493,93667.0,93646.0,0.099]
[1735501637914,0.0167493,93667.0,93648.0,0.0793]
[1735501638148,0.0167493,93667.0,93649.0,0.10505389]
[1735501640482,0.00100004,93666.0,93646.0,0.003]
[1735501640690,0.0167493,93667.0,93649.0,0.001]
[1735501640892,0.0167493,93667.0,93650.0,0.13585928]
[1735501641878,0.00100004,93666.0,93649.0,0.004]
[1735501642497,0.0167493,93667.0,93629.0,0.00022083]
[1735501642498,0.001,93653.0,93629.0,0.00022083]
[1735501642702,0.001,93653.0,93630.0,0.10398632]
[1735501642899,0.001,93653.0,93650.0,0.004]
[1735501643369,0.001,93653.0,93630.0,0.10398632]
[1735501643572,0.01774987,93653.0,93631.0,0.02042925]
[1735501643726,0.00100004,93652.0,93649.0,0.004]
[1735501644130,0.00100004,93652.0,93632.0,0.10398632]
[1735501644620,0.00100004,93656.0,93650.0,0.011]
[1735501645221,0.00100004,93657.0,93650.0,0.011]
[1735501646157,0.00100004,93657.0,93650.0,0.008]
[1735501646339,0.00100004,93657.0,93633.0,0.00106785]
[1735501646538,0.00100004,93657.0,93634.0,0.11686528]
[1735501646741,0.00100004,93657.0,93649.0,0.009]
[1735501646969,0.001,93653.0,93634.0,0.01287896]
[1735501647183,0.001,93653.0,93632.0,0.003]
[1735501647384,0.00100004,93652.0,93650.0,0.006]
[1735501647588,0.00100004,93652.0,93633.0,0.10398632]
[1735501647759,0.00100004,93652.0,93650.0,0.002]
[1735501648284,2.685216,93651.0,93650.0,0.002]
[1735501648486,2.685216,93651.0,93649.0,0.006]
[1735501648487,0.1316,93650.0,93649.0,0.006]
[1735501648688,0.1316,93650.0,93629.0,0.00022083]
[1735501648689,0.001,93630.0,93629.0,0.00022083]
[1735501649017,0.0492,93630.0,93629.0,0.00022083]
[1735501649169,0.0814,93642.0,93629.0,0.00022083]
[1735501649810,0.01675284,93645.0,93630.0,0.10398632]
[1735501650064,0.01675284,93645.0,93631.0,0.01042925]
[1735501650272,0.01675284,93645.0,93632.0,0.10505406]
[1735501650471,0.001,93642.0,93632.0,0.10505406]
[1735501650821,0.01675284,93645.0,93632.0,0.10505406]
[1735501651031,0.01675284,93645.0,93634.0,0.099]
[1735501651231,0.0001706,93660.0,93639.0,0.099]
[1735501651409,0.0001706,93660.0,93652.0,0.099]
[1735501651610,0.0001706,93660.0,93647.0,0.10398632]
[1735501651611,0.0001706,93660.0,93653.0,0.10398632]
[1735501652095,0.0001706,93660.0,93654.0,0.00106751]
[1735501652305,0.0001706,93660.0,93655.0,0.10398632]
[1735501652432,0.0001706,93660.0,93655.0,0.1243917]
[1735501653517,0.0001706,93660.0,93655.0,0.1253917]
[1735501653718,0.0001706,93660.0,93655.0,0.10898632]
[1735501655349,0.0001706,93660.0,93655.0,0.005]
[1735501655594,0.0814,93668.0,93655.0,0.005]
[1735501656020,0.0001706,93660.0,93655.0,0.005]
[1735501656348,0.0001706,93660.0,93655.0,0.004]
[1735501656768,0.0001706,93660.0,93655.0,0.001]
[1735501657139,0.01674865,93659.0,93655.0,0.001]
[1735501657546,0.01674865,93659.0,93655.0,0.0111]
[1735501657744,0.01674865,93659.0,93658.0,0.1]
[1735501658204,0.01674865,93659.0,93655.0,0.0111]
[1735501658438,0.01674865,93659.0,93658.0,0.1]
[1735501659510,0.20209889,93697.0,93658.0,0.1]
[1735501659726,0.00015287,93668.0,93659.0,0.03151]
[1735501660508,0.00015287,93668.0,93663.0,0.1]
[1735501661282,0.01674697,93667.0,93663.0,0.1]
[1735501661483,0.01674697,93667.0,93664.0,0.1]
[1735501661688,0.01674697,93667.0,93666.0,0.1]
[1735501662513,0.00015287,93668.0,93667.0,0.1]
[1735501662514,0.00115287,93668.0,93667.0,0.1]
[1735501662949,0.00015287,93668.0,93667.0,0.20398632]
[1735501664085,0.00015287,93668.0,93667.0,0.20598632]
[1735501664356,0.00015287,93668.0,93667.0,0.24487495]
[1735501664732,0.00115287,93668.0,93667.0,0.25387495]
[1735501665541,0.00115287,93668.0,93667.0,0.15187495]
[1735501665764,0.00115287,93668.0,93667.0,0.25187495]
[1735501666397,0.00115287,93668.0,93667.0,0.25487495]
[1735501666819,0.00115287,93668.0,93667.0,0.25187495]
[1735501667003,0.00115287,93668.0,93667.0,0.15187495]
[1735501667177,0.00115287,93668.0,93667.0,0.109]
[1735501667379,0.00132347,93668.0,93667.0,0.113]
[1735501667711,0.00132347,93668.0,93667.0,0.21698632]
[1735501668057,0.00132347,93668.0,93667.0,0.113]
[1735501668496,0.00132347,93668.0,93667.0,0.1243]
[1735501668702,0.00132347,93668.0,93667.0,0.113]
[1735501670442,0.00132347,93668.0,93667.0,0.109]
[1735501670870,0.00132347,93668.0,93667.0,0.11]
[1735501671073,0.00032347,93668.0,93667.0,0.101]
[1735501671451,0.00032347,93668.0,93667.0,0.104]
[1735501671811,0.00032347,93668.0,93667.0,0.22357632]
[1735501672104,0.00032347,93668.0,93667.0,0.20498632]
[1735501672289,0.00032347,93668.0,93667.0,0.20998632]
[1735501672484,0.00032347,93668.0,93667.0,0.21098632]
[1735501672683,0.00032347,93668.0,93667.0,0.10498632]
[1735501672891,0.00132347,93668.0,93667.0,0.21398632]
[1735501673091,0.00132347,93668.0,93667.0,0.21298632]
[1735501673492,0.00132347,93668.0,93667.0,0.11698632]
[1735501673694,0.00132347,93668.0,93667.0,0.23687495]
[1735501674374,0.00032347,93668.0,93667.0,0.22787495]
[1735501674814,0.00132347,93668.0,93667.0,0.23687495]
[1735501675797,0.00132347,93668.0,93667.0,0.13687495]
[1735501676046,0.00132347,93668.0,93667.0,0.23687495]
[1735501676272,0.00132347,93668.0,93667.0,0.21698632]
[1735501679500,0.00132347,93668.0,93667.0,0.39688632]
[1735501679908,0.00132347,93668.0,93667.0,0.54237162]
[1735501680111,0.00132347,93668.0,93667.0,0.53837162]
[1735501680316,0.00132347,93668.0,93667.0,0.39220878]
[1735501680517,0.00232347,93668.0,93667.0,0.59920878]
[1735501681268,0.00132347,93668.0,93667.0,0.59020878]
[1735501681488,0.00132347,93668.0,93667.0,0.59920878]
[1735501681889,0.00032347,93668.0,93667.0,0.58320878]
[1735501682092,0.00032347,93668.0,93667.0,0.9467054]
[1735501682311,0.00132347,93668.0,93667.0,0.57556824]
[1735501682710,0.00032347,93668.0,93667.0,0.56756824]
[1735501682910,0.00032347,93668.0,93667.0,0.21307162]
[1735501683130,0.00032347,93668.0,93667.0,0.21207162]
[1735501683516,0.00032347,93668.0,93667.0,0.1000853]
[1735501683942,0.00032347,93668.0,93667.0,0.1010853]
[1735501685259,0.00032347,93668.0,93667.0,0.1100853]
[1735501685455,0.00032347,93668.0,93667.0,0.1010853]
[1735501685860,0.00032347,93668.0,93667.0,0.1060853]
[1735501686261,0.00032347,93668.0,93667.0,0.11869383]
[1735501686490,0.00032347,93668.0,93667.0,0.1080853]
[1735501687235,0.00032347,93668.0,93667.0,0.1060853]
[1735501688216,0.00032347,93668.0,93667.0,0.1000853]
[1735501688626,0.00032347,93668.0,93667.0,0.1080853]
[1735501691797,0.00032347,93668.0,93667.0,0.0080853]
[1735501691968,0.12612347,93668.0,93667.0,0.0080853]
[1735501692787,0.12612347,93668.0,93667.0,0.0060853]
[1735501692956,0.12612347,93668.0,93667.0,8.53e-05]
[1735501693158,0.13012347,93668.0,93667.0,8.53e-05]
[1735501693544,3.13060647,93668.0,93667.0,8.53e-05]
[1735501693961,0.67778314,93668.0,93667.0,8.53e-05]
[1735501694162,0.41410614,93668.0,93667.0,8.53e-05]
[1735501694676,0.39400947,93668.0,93667.0,8.53e-05]
[1735501695480,0.39700947,93668.0,93667.0,8.53e-05]
[1735501695683,0.39500947,93668.0,93667.0,8.53e-05]
[1735501695885,0.39200947,93668.0,93667.0,8.53e-05]
[1735501696093,0.13012347,93668.0,93667.0,8.53e-05]
[1735501696284,0.12812347,93668.0,93667.0,8.53e-05]
[1735501696704,0.13112347,93668.0,93667.0,8.53e-05]
[1735501696903,1.38524747,93668.0,93667.0,8.53e-05]
[1735501697109,1.37881647,93668.0,93667.0,8.53e-05]
[1735501697403,1.16550547,93668.0,93667.0,8.53e-05]
[1735501699448,1.16350547,93668.0,93667.0,8.53e-05]
[1735501699670,1.16050547,93668.0,93667.0,8.53e-05]
[1735501699911,1.16550547,93668.0,93667.0,8.53e-05]
[1735501700863,0.46559647,93668.0,93667.0,8.53e-05]
[1735501701275,0.66992004,93668.0,93667.0,8.53e-05]
[1735501701472,0.57988804,93668.0,93667.0,8.53e-05]
[1735501701896,0.14587204,93668.0,93667.0,8.53e-05]
[1735501702303,0.14787204,93668.0,93667.0,8.53e-05]
[1735501702755,0.01707204,93668.0,93667.0,8.53e-05]
[1735501702966,0.01907204,93668.0,93667.0,0.11009383]
[1735501703524,0.00032347,93668.0,93667.0,0.11009383]
[1735501703889,0.00132347,93668.0,93667.0,0.1000853]
[1735501705136,0.00032347,93668.0,93667.0,0.1000853]
[1735501705538,0.00032347,93668.0,93667.0,0.1010853]
[1735501706606,0.00032347,93668.0,93667.0,0.1050853]
[1735501706805,0.05571458,93697.0,93667.0,0.1050853]
[1735501706955,3.482573,93696.0,93668.0,0.01871853]
[1735501708098,3.486573,93696.0,93668.0,0.01971853]
[1735501708297,3.482573,93695.0,93668.0,0.01971853]
[1735501708801,0.01674585,93689.0,93668.0,0.01971853]
[1735501709129,0.334398,93688.0,93679.0,0.1]
[1735501709245,0.214387,93688.0,93685.0,0.1]
[1735501709440,0.01674585,93689.0,93686.0,0.01]
[1735501709648,0.01674585,93689.0,93688.0,0.1]
[1735501710053,0.01974585,93689.0,93688.0,0.1]
[1735501711369,0.01974585,93689.0,93682.0,0.1]
[1735501711730,0.01974585,93689.0,93688.0,0.103]
[1735501712134,0.01674585,93689.0,93688.0,0.103]
[1735501712952,0.01674585,93689.0,93688.0,0.1]
[1735501713976,0.01674585,93689.0,93688.0,0.102]
[1735501714204,0.00015285,93697.0,93688.0,0.102]
[1735501714465,2.433487,93696.0,93688.0,0.102]
[1735501714670,2.506352,93696.0,93688.0,0.102]
[1735501714861,2.674571,93696.0,93688.0,0.002]
[1735501715326,2.069173,93695.0,93689.0,0.1]
[1735501715474,2.453836,93696.0,93689.0,0.1]
[1735501716063,2.114171,93696.0,93688.0,8.53e-05]
[1735501716271,2.419413,93696.0,93688.0,8.53e-05]
[1735501716495,2.075623,93695.0,93688.0,8.53e-05]
[1735501716873,2.522149,93696.0,93688.0,8.53e-05]
[1735501717056,2.705664,93695.0,93688.0,8.53e-05]
[1735501717494,2.72240847,93695.0,93688.0,8.53e-05]
[1735501717721,2.074555,93694.0,93688.0,8.53e-05]
[1735501718152,0.0462,93692.0,93688.0,8.53e-05]
[1735501718386,3.48513686,93691.0,93688.0,8.53e-05]
[1735501718596,0.1832,93689.0,93688.0,8.53e-05]
[1735501718824,3.665773,93689.0,93688.0,8.53e-05]
[1735501719257,3.66736551,93689.0,93688.0,8.53e-05]
[1735501719620,3.6874608,93689.0,93688.0,8.53e-05]
[1735501719913,3.7396608,93689.0,93688.0,0.0010853]
[1735501720462,3.7336608,93689.0,93688.0,8.53e-05]
[1735501721045,3.7406608,93689.0,93688.0,0.0010853]
[1735501721459,3.7406608,93689.0,93688.0,0.0020853]
[1735501721618,3.7496608,93689.0,93688.0,0.0020853]
[1735501721823,3.7406608,93689.0,93688.0,0.0010853]
[1735501722441,3.7496608,93689.0,93688.0,0.0020853]
[1735501722681,3.7426608,93689.0,93688.0,0.0010853]
[1735501723039,3.7486608,93689.0,93688.0,0.0010853]
[1735501724143,3.6486608,93689.0,93688.0,0.0010853]
[1735501724347,3.7486608,93689.0,93688.0,0.0010853]
[1735501724971,3.6486608,93689.0,93688.0,0.0010853]
[1735501725601,3.7486608,93689.0,93688.0,0.0010853]
[1735501725832,3.6486608,93689.0,93688.0,0.0010853]
[1735501726242,2.79316015,93689.0,93688.0,0.0010853]
[1735501726467,2.38202515,93689.0,93688.0,0.0010853]
[1735501727075,2.37602515,93689.0,93688.0,0.0010853]
[1735501727279,2.12806229,93689.0,93688.0,8.53e-05]
[1735501727492,2.15080916,93689.0,93688.0,8.53e-05]
[1735501727866,2.13071387,93689.0,93688.0,8.53e-05]